{"text_format":"1","workbook":"xlsx","n_sheets":1,"sheets":["Tabelle1"],"not_rendered":{"charts":0,"images":1,"macros":0,"external_links":0,"defined_names":0,"comments":0,"pivot_tables":0},"unopened":[],"bounds":{"document_bytes":16777216,"sheet_cells":100000,"rows_first":2000,"rows_last":500,"rows_between":2000,"halvings":0,"cell_chars":16384,"cell_head_chars":4096},"cells_cut":0,"cells_raw":0,"read":"whole","date_system":"1900"}

{"sheet":"Tabelle1","index":0,"n_rows":48,"n_cols":28,"rows_kept":48,"cut":false,"hidden":false,"merged":[[9,15,9,27],[28,6,28,7],[28,8,28,9],[28,10,28,11],[15,12,15,13],[15,14,15,15],[15,10,15,11],[15,6,15,7],[15,8,15,9],[9,9,9,12],[15,0,16,0],[28,0,29,0],[28,1,29,1],[28,2,28,3],[28,4,28,5],[15,1,16,1],[15,2,15,3],[15,4,15,5],[3,19,3,21],[3,12,3,18],[28,24,28,25],[28,26,28,27],[28,12,28,13],[28,14,28,15],[28,16,28,17],[28,18,28,19],[28,20,28,21],[28,22,28,23],[15,24,15,25],[15,26,15,27],[15,16,15,17],[15,18,15,19],[15,20,15,21],[15,22,15,23]]}
[null,null,null,null,null,null,null,null,null,null,null,null,null,null,null,null,null,null,null,null,null,null,null,null,"Copyright © by Thomas Lang"]
[null,null,null,null,null,null,null,null,null,"!!! Vor- und Nachname bitte NICHT VERGESSEN!!!"]
[]
[null,null,null,null,null,null,null,null,null,null,null,null,"Fangstatistik ",null,null,null,null,null,null,2020]
[]
[]
[]
[]
[]
[]
["Rücksendung per Post oder an:",null,null,null,null,null,null,null,null,"Mitglieds Nr.",null,null,null,null,null,"Vor- und Nachname"]
["schriftfuehrer@asv-freiburg.de"]
[]
["Bitte das Gewicht in Kilogramm mit einer Kommastelle eintragen, also z.B. 2300 Gramm als 2,3 in der kg-Spalte!"]
[]
["Gewässer","Anzahl Besuche","Aale",null,"Äsche Felchen",null,"Bach-forelle",null,"Regenbogen-forelle",null,"Saibling",null,"See-forelle",null,"Barsch",null,"Hecht",null,"Karpfen",null,"Schleie",null,"Wels",null,"Zander",null,"Weiß-fische"]
[null,null,"Stk","kg","Stk","kg","Stk","kg","Stk","kg","Stk","kg","Stk","kg","Stk","kg","Stk","kg","Stk","kg","Stk","kg","Stk","kg","Stk","kg","Stk","kg"]
["Badeweiher St.Peter"]
["Dietenbach-see"]
["Baggersee Kenzingen"]
["Merdingen"]
["Moosweiher Freiburg"]
["Opfinger Baggersee"]
["Reutmatten-see"]
["Baggersee Rheinhausen"]
["Waldsee"]
["Gesamt",{"$f":"SUM(B18:B26)","v":0},0,0,0,0,0,0,0,0,0,0,{"$f":"SUM(M18:M26)","v":0},{"$f":"SUM(N18:N26)","v":0},0,0,0,0,0,0,0,0,0,0,0,0,0,0]
[]
["Gewässer","Anzahl Besuche","Aale",null,"Äsche Felchen",null,"Bach-forelle",null,"Regenbogen-forelle",null,"Saibling",null,"See-forelle",null,"Barsch",null,"Hecht",null,"Karpfen",null,"Schleie",null,"Wels",null,"Zander",null,"Weiß-fische"]
[null,null,"Stk","kg","Stk","kg","Stk","kg","Stk","kg","Stk","kg","Stk","kg","Stk","kg","Stk","kg","Stk","kg","Stk","kg","Stk","kg","Stk","kg","Stk","kg"]
["Brugga"]
["Dietenbach"]
["Dreisam-Los 1"]
["Dreisam-Los 2"]
["Dreisam-Los 3"]
["Eckbach/ Möhlin"]
["Elz"]
["Eschbach"]
["Flinschkanal"]
["Glotter"]
["Höllbach"]
["Ibentalbach"]
["Klapperbach"]
["Krummbach Hagenbach"]
["Rotbach"]
["St. Wilhelm"]
["Wagensteig-bach"]
["Gesamt",{"$f":"SUM(B31:B47)","v":0},{"$f":"SUM(C31:C47)","v":0},{"$f":"SUM(D31:D47)","v":0},{"$f":"SUM(D31:E47)","v":0},{"$f":"SUM(F31:F47)","v":0},0,0,0,0,0,0,0,0,0,0,0,0,0,0,0,0,0,0,0,0,0,0]